bitfinex/quotes_ETHUSD_20260106
["timestamp","ask_amount","ask_price","bid_price","bid_amount"]
[1767694277349,0.01865353,3226.3,3225.1,0.96291446]
[1767694277548,0.6217545,3226.2,3225.1,0.96291446]
[1767694279257,0.6217545,3226.2,3225.2,0.96291446]
[1767694279258,3.721436,3226.2,3225.2,0.96291446]
[1767694279784,3.72139105,3226.2,3225.2,0.96291446]
[1767694279980,3.09963655,3226.2,3225.2,0.96291446]
[1767694280645,6.1992731,3226.2,3225.2,0.96291446]
[1767694280844,6.1992731,3226.2,3225.4,0.96291446]
[1767694281490,3.09936623,3226.5,3225.4,0.96291446]
[1767694281491,6.19869987,3226.5,3225.4,0.96291446]
[1767694282292,0.96291446,3226.4,3225.2,0.96291446]
[1767694282592,1.5846498,3226.4,3225.2,0.96291446]
[1767694282761,0.62173534,3226.4,3225.2,0.96291446]
[1767694282959,0.62173534,3226.4,3225.4,0.96291446]
[1767694283162,6.19869987,3226.5,3225.4,0.96291446]
[1767694283597,0.96291446,3226.7,3225.5,0.96291446]
[1767694283598,3.09923758,3226.6,3225.5,0.96291446]
[1767694283794,0.002,3225.9,3225.5,0.96291446]
[1767694286172,0.002,3225.9,3225.6,0.96291446]
[1767694286373,0.002,3225.9,3224.9,7.71267009]
[1767694286374,0.002,3225.9,3224.7,0.96291446]
[1767694286568,0.002,3226.2,3225.1,0.96291446]
[1767694287772,0.002,3226.2,3225.2,0.96291446]
[1767694287970,0.002,3226.2,3225.3,1.77591446]
[1767694289172,0.002,3226.2,3225.3,0.96291446]
[1767694289376,0.62010515,3226.1,3225.4,0.813]
[1767694289587,1.58301961,3226.1,3225.4,0.813]
[1767694290193,0.62010515,3226.1,3225.4,1.77591446]
[1767694290513,0.62010515,3226.1,3225.5,0.96291446]
[1767694290708,3.71991295,3226.1,3225.5,0.96291446]
[1767694290914,0.62010515,3226.1,3225.5,0.96291446]
[1767694291099,0.002,3226.2,3225.5,0.96291446]
[1767694291497,3.10169221,3226.2,3225.5,0.96291446]
[1767694291680,0.002,3226.2,3225.5,0.96291446]
[1767694292506,6.41,3226.7,3225.6,0.99107831]
[1767694292707,6.41,3226.7,3225.8,0.99107831]
[1767694292708,9.50917759,3226.7,3225.8,0.99107831]
[1767694292878,7.76710666,3226.7,3226.0,0.99107831]
[1767694293207,4.06147982,3227.3,3226.1,1.80307831]
[1767694293614,0.96291446,3227.2,3226.1,1.80307831]
[1767694293933,0.01865353,3227.0,3226.2,0.812]
[1767694294084,0.01865353,3227.0,3225.8,0.99107831]
[1767694294085,0.96291446,3227.0,3225.8,0.99107831]
[1767694294407,0.96291446,3227.0,3225.9,0.99107831]
[1767694294619,0.96291446,3227.0,3225.9,1.80307831]
[1767694295295,0.96291446,3226.8,3225.8,0.812]
[1767694295501,0.96291446,3226.8,3225.4,0.99107831]
[1767694295807,0.96291446,3226.8,3225.5,1.80307831]
[1767694296119,0.96291446,3226.8,3225.7,0.001]
[1767694297008,0.98156799,3226.8,3225.8,0.812]
[1767694297212,7.16158174,3226.5,3225.8,0.812]
[1767694297391,10.26091538,3226.5,3225.7,0.001]
[1767694297713,0.96291446,3226.4,3225.7,0.001]
[1767694298005,0.96291446,3226.4,3225.5,1.80307831]
[1767694298006,0.96291446,3226.4,3225.5,0.99107831]
[1767694298312,0.96291446,3226.4,3225.5,0.812]
[1767694298479,1.89435725,3226.3,3225.5,0.812]
[1767694298681,0.96291446,3226.2,3225.2,0.99107831]
[1767694299010,0.96291446,3226.2,3225.3,0.812]
[1767694299311,6.19943584,3226.1,3225.3,0.812]
[1767694300215,6.19943584,3226.1,3224.7,3.10101887]
[1767694300216,0.96291446,3226.0,3224.9,0.99107831]
[1767694300397,0.96291446,3225.8,3225.0,0.812]
[1767694301100,0.96291446,3225.8,3224.9,0.99107831]
[1767694301316,0.96291446,3225.8,3225.0,0.812]
[1767694301519,6.2002046,3225.7,3225.0,0.812]
[1767694302422,3.1001023,3225.7,3225.1,0.99107831]
[1767694302715,3.81175141,3225.7,3225.1,0.99107831]
[1767694303011,3.1001023,3225.7,3225.1,0.99107831]
[1767694303535,6.19943584,3226.1,3225.1,0.99107831]
[1767694305008,0.96291446,3226.0,3225.1,0.99107831]
[1767694305841,6.1998202,3225.9,3225.0,0.812]
[1767694306056,7.16273466,3225.9,3225.0,0.812]
[1767694306237,1.02625807,3225.8,3225.1,0.99107831]
[1767694307141,1.02625807,3225.8,3225.2,0.812]
[1767694307528,1.02625807,3225.8,3225.1,0.812]
[1767694307937,7.16311906,3225.7,3224.8,0.99107831]
[1767694308130,7.16311906,3225.7,3224.9,0.812]
[1767694308324,0.82154023,3225.6,3224.8,0.99107831]
[1767694308550,0.82154023,3225.6,3224.8,1.80307831]
[1767694308551,1.78445469,3225.6,3224.8,1.80307831]
[1767694310038,6.20058904,3225.5,3224.8,1.80307831]
[1767694310223,9.30088356,3225.5,3224.8,1.80307831]
[1767694310618,9.30088356,3225.5,3224.1,3.10161104]
[1767694310825,1.98917253,3225.4,3224.3,0.99107831]
[1767694311252,0.96291446,3225.3,3224.3,0.99107831]
[1767694311445,0.96291446,3225.3,3224.4,0.812]
[1767694312447,0.96291446,3225.1,3224.4,0.812]
[1767694313318,0.96291446,3225.1,3224.0,0.99107831]
[1767694313544,0.96291446,3224.9,3224.1,0.812]
[1767694313746,0.96291446,3224.9,3224.0,0.99107831]
[1767694313747,0.96291446,3224.9,3224.2,0.812]
[1767694314546,6.201935,3224.8,3224.2,0.812]
[1767694315150,6.201935,3224.8,3224.0,0.99107831]
[1767694315449,3.1009675,3224.8,3224.2,1.80307831]
[1767694315655,3.80330801,3224.8,3224.2,1.80307831]
[1767694315821,3.80330801,3224.8,3224.3,0.90028814]
[1767694316434,6.90427551,3224.8,3224.3,0.90028814]
[1767694316647,3.80330801,3224.8,3224.3,0.90028814]
[1767694317355,0.92399497,3224.7,3223.4,0.90028814]
[1767694317555,0.92399497,3224.7,3223.6,0.90028814]
[1767694317556,1.61441913,3224.7,3223.6,0.90028814]
[1767694317729,1.61441913,3224.7,3223.7,1.71328814]
[1767694318449,1.61441913,3224.7,3223.7,0.90028814]
[1767694318450,0.92399497,3224.6,3223.7,0.90028814]
[1767694318654,1.08543688,3224.5,3223.8,0.813]
[1767694318832,4.18669631,3224.5,3223.8,0.813]
[1767694319038,3.26270134,3224.5,3223.8,0.813]
[1767694319646,0.92399497,3224.4,3222.7,0.90028814]
[1767694319853,0.92399497,3224.4,3223.1,3.10258121]
[1767694320150,0.92399497,3224.2,3223.2,0.31025812]
[1767694320354,0.92399497,3224.2,3223.2,3.41273716]
[1767694320658,6.36396077,3224.5,3223.4,0.90028814]
[1767694320861,3.26270134,3224.5,3223.6,0.90028814]
[1767694321058,6.36396077,3224.5,3223.6,0.90028814]
[1767694322363,3.26270134,3224.5,3223.6,0.90028814]
[1767694322540,6.36396077,3224.5,3223.6,0.90028814]
[1767694322731,6.36396077,3224.5,3223.7,0.97682954]
[1767694322926,3.10123793,3224.6,3223.8,1.78982954]
[1767694323255,3.10123793,3224.6,3223.9,0.97682954]
[1767694323960,6.20245636,3224.6,3223.9,0.97682954]
[1767694325246,6.20200912,3224.8,3223.9,0.97682954]
[1767694325650,6.20200912,3224.8,3223.9,1.78982954]
[1767694325970,0.71260041,3224.7,3223.9,0.97682954]
[1767694326182,0.71260041,3224.7,3223.9,1.78982954]
[1767694326952,0.71260041,3224.7,3224.0,0.97682954]
[1767694327554,3.10115983,3224.6,3224.0,0.97682954]
[1767694327956,3.10067904,3225.1,3224.0,0.97682954]
[1767694328176,0.71875439,3225.0,3224.0,0.97682954]
[1767694328841,0.71875439,3225.0,3224.1,0.813]
[1767694329878,6.20174268,3224.9,3224.1,0.813]
[1767694330476,6.20174268,3224.9,3224.2,0.97682954]
[1767694330477,3.10087134,3224.9,3224.2,0.97682954]
[1767694330680,3.10087134,3224.9,3224.1,0.813]
[1767694330681,0.98621296,3224.8,3224.1,0.813]
[1767694330975,3.10087134,3224.9,3224.1,0.813]
[1767694330976,6.20174268,3224.9,3224.2,0.97682954]
[1767694331387,6.20174268,3224.9,3224.2,1.15581249]
[1767694332087,6.20155038,3225.0,3224.2,1.15581249]
[1767694332382,0.002,3224.6,3224.2,1.15581249]
[1767694338290,0.002,3224.6,3223.9,1.78982954]
[1767694338493,0.002,3224.6,3224.0,0.97682954]
[1767694344607,0.002,3224.3,3224.0,0.97682954]
[1767694346406,0.002,3224.3,3223.7,0.813]
[1767694346906,0.002,3224.3,3223.7,1.78982954]
[1767694347106,0.002,3224.3,3223.7,2.27902851]
[1767694347310,0.002,3224.3,3223.8,0.97682954]
[1767694347483,0.98621296,3224.2,3223.7,4.4042129]
[1767694347687,0.002,3224.6,3224.0,4.61295292]
[1767694347886,0.002,3224.9,3224.6,0.97682954]
[1767694350615,0.002,3224.9,3224.8,0.97682954]
[1767694354019,0.002,3224.9,3224.4,0.9518767]
[1767694354220,0.002,3224.9,3224.5,0.94792229]
[1767694354834,0.002,3224.9,3224.5,1.89979899]
[1767694355008,0.002,3224.9,3224.6,0.9518767]
[1767694355951,6.20039682,3225.6,3224.9,0.9518767]
[1767694356151,6.2000124,3225.8,3224.9,0.9518767]
[1767694356655,3.1000062,3225.8,3224.9,0.9518767]
[1767694356835,6.2000124,3225.8,3224.9,0.9518767]
[1767694357925,9.3000186,3225.8,3224.9,0.9518767]
[1767694358125,6.2000124,3225.8,3224.9,0.9518767]
[1767694358344,0.80705473,3225.7,3224.9,0.9518767]
[1767694359333,1.68404437,3225.7,3224.6,0.9518767]
[1767694359536,0.87698964,3225.6,3224.7,0.813]
[1767694359740,0.87698964,3225.6,3224.7,1.7648767]
[1767694359959,0.80705473,3225.7,3224.8,0.9518767]
[1767694360462,3.10019841,3225.6,3224.8,0.9518767]
[1767694360760,6.20039682,3225.6,3224.8,0.9518767]
[1767694361052,6.20039682,3225.6,3224.4,1.7648767]
[1767694361053,5.48994256,3225.5,3224.4,1.7648767]
[1767694361558,5.48994256,3225.5,3224.5,0.9518767]
[1767694362252,6.20078128,3225.4,3224.5,0.9518767]
[1767694362554,6.20078128,3225.4,3224.5,1.12836437]
[1767694364780,3.1001023,3225.7,3224.6,0.9518767]
[1767694365164,6.20022825,3225.7,3224.6,0.9518767]
[1767694365664,7.07700204,3225.8,3224.6,0.9518767]
[1767694365868,8.55618118,3225.8,3224.8,0.9518767]
[1767694369075,0.002,3225.5,3224.8,0.9518767]
[1767694372200,0.87698964,3225.4,3224.5,0.17648767]
[1767694372584,0.002,3225.5,3224.5,1.12836437]
[1767694373705,6.20258904,3225.5,3224.5,1.12836437]
[1767694374304,0.87698964,3225.4,3224.5,1.12836437]
[1767694374510,4.61295292,3225.3,3224.5,0.9518767]
[1767694375312,5.48994256,3225.3,3224.5,0.9518767]
[1767694375822,6.2011658,3225.2,3224.2,0.9875089]
[1767694376122,7.75670058,3225.2,3224.2,0.9875089]
[1767694376621,4.65611768,3225.2,3224.4,0.9875089]
[1767694376915,3.1005829,3225.2,3224.4,0.9875089]
[1767694377208,6.2011658,3225.2,3224.4,0.9875089]
[1767694377677,6.20097354,3225.3,3224.4,0.9875089]
[1767694377877,7.37026515,3225.3,3224.4,0.9875089]
[1767694378403,0.87698964,3225.2,3224.1,3.91459177]
[1767694378609,0.87698964,3225.0,3224.1,0.813]
[1767694379688,6.20174268,3224.9,3224.1,0.813]
[1767694379892,3.10087134,3224.9,3224.2,0.9875089]
[1767694381176,3.1007015,3225.1,3224.3,0.99708821]
[1767694381608,6.20147357,3225.1,3224.3,0.99708821]
[1767694381788,6.20147357,3225.1,3224.4,0.001]
[1767694382103,6.2031658,3225.2,3224.4,0.001]
[1767694382306,6.2031658,3225.2,3224.4,0.99808821]
[1767694382522,6.88167249,3225.2,3224.4,0.99808821]
[1767694387626,5.48994256,3225.1,3224.1,1.81008821]
[1767694387826,4.61295292,3224.8,3224.1,1.81008821]
[1767694388727,0.87698964,3224.9,3224.1,1.81008821]
[1767694389026,3.1009675,3224.8,3224.1,1.81008821]
[1767694389414,3.1009675,3224.8,3224.2,0.99708821]
[1767694389624,0.54899426,3224.9,3224.2,0.99708821]
[1767694389625,3.10091267,3224.9,3224.2,0.99708821]
[1767694390932,3.10067904,3225.1,3224.4,0.99708821]
[1767694391106,6.20135808,3225.1,3224.4,0.99708821]
[1767694391816,3.10067904,3225.1,3224.4,0.99708821]
[1767694392238,6.20135808,3225.1,3224.4,0.99708821]
[1767694393738,0.002,3224.9,3224.4,0.99708821]
[1767694399337,0.002,3224.9,3224.1,1.81008821]
[1767694399532,0.002,3224.9,3224.2,1.17809703]
[1767694400846,0.87898964,3224.9,3224.2,1.17809703]
[1767694401012,0.87898964,3224.9,3224.1,0.813]
[1767694402519,6.201935,3224.8,3224.1,0.813]
[1767694403245,0.87698964,3224.7,3224.1,0.813]
[1767694404651,3.10115983,3224.6,3224.1,0.813]
[1767694405758,3.10315983,3224.6,3224.1,0.813]
[1767694406538,0.002,3224.6,3224.1,1.81008821]
[1767694406834,0.002,3224.6,3224.2,0.99708821]
[1767694410633,3.10315983,3224.6,3223.9,0.99708821]
[1767694410865,0.002,3224.6,3224.0,0.99708821]
[1767694418965,0.002,3224.6,3224.3,0.91097677]
[1767694420070,0.02065353,3224.6,3224.1,0.90997677]
[1767694420268,0.01865353,3224.4,3224.1,0.90997677]
[1767694422071,3.12184288,3224.6,3224.1,0.90997677]
[1767694422379,0.01865353,3224.4,3224.1,0.90997677]
[1767694425576,3.12002027,3224.4,3223.8,0.90997677]
[1767694430784,6.22138701,3224.4,3223.8,0.90997677]
[1767694430981,3.12002027,3224.4,3223.8,0.90997677]
[1767694431668,0.01865353,3224.4,3223.8,0.90997677]
[1767694431863,0.01865353,3224.4,3224.1,0.001]
[1767694432385,3.1200075,3224.4,3224.1,0.001]
[1767694435278,0.01865353,3224.4,3224.1,0.91387483]
[1767694435465,3.12184125,3224.6,3224.1,0.91387483]
[1767694435665,3.74598989,3224.6,3224.1,0.91387483]
[1767694439001,0.002,3224.6,3224.1,0.91387483]
[1767694440193,0.002,3224.9,3224.2,0.813]
[1767694440393,0.002,3224.9,3224.3,0.91287483]
[1767694440595,0.002,3224.9,3224.3,3.10136608]
[1767694440769,0.002,3224.9,3224.4,0.91287483]
[1767694441096,0.002,3224.9,3224.6,0.91287483]
[1767694442016,0.002,3224.9,3224.5,0.40142409]
[1767694442196,0.002,3224.9,3224.5,0.813]
[1767694442866,0.002,3224.9,3224.4,0.95770136]
[1767694443069,0.02065353,3224.9,3224.4,1.77070136]
[1767694443663,0.002,3224.6,3224.4,1.77070136]
[1767694444490,0.002,3224.6,3224.4,0.813]
[1767694445892,0.90926875,3224.5,3224.4,0.813]
[1767694446296,0.90926875,3224.5,3224.1,0.001]
[1767694447777,0.09987483,3224.4,3224.1,0.001]
[1767694449484,0.01865353,3224.5,3224.1,0.95870136]
[1767694452411,3.11991355,3224.5,3224.1,0.95870136]
[1767694452909,0.01865353,3224.3,3224.1,0.001]
[1767694454707,0.01865353,3224.3,3223.4,3.10228712]
[1767694454708,0.09987483,3224.2,3222.8,3.53168785]
[1767694454877,9.32304024,3224.3,3222.9,0.95770136]
[1767694454878,5.42552792,3224.1,3222.9,0.95770136]
[1767694455084,0.09987483,3224.0,3222.9,0.95770136]
[1767694455578,0.09987483,3223.9,3222.9,0.95770136]
[1767694455982,0.09987483,3223.7,3222.9,0.95770136]
[1767694456180,0.91287483,3223.6,3222.9,0.95770136]
[1767694456382,1.62454819,3223.6,3222.9,0.95770136]
[1767694456582,0.71167336,3223.6,3222.9,0.95770136]
[1767694456809,0.813,3223.5,3222.9,0.95770136]
[1767694458015,0.09987483,3223.9,3222.9,0.95770136]
[1767694458194,0.813,3223.6,3222.9,0.95770136]
[1767694458994,0.813,3223.6,3222.6,0.95770136]
[1767694460112,3.10221808,3223.5,3222.6,0.95770136]
[1767694461305,3.10221808,3223.5,3222.7,0.95770136]
[1767694462416,6.20443616,3223.5,3222.7,0.95770136]
[1767694462591,3.10221808,3223.5,3222.7,0.95770136]
[1767694464213,0.813,3223.6,3222.8,0.95770136]
[1767694464412,3.91515915,3223.6,3222.8,0.95770136]
[1767694464613,3.10150404,3224.3,3222.9,0.95770136]
[1767694464920,0.90926875,3224.1,3223.1,0.95770136]
[1767694465221,6.20270436,3224.4,3223.3,0.95770136]
[1767694465516,1.72226875,3224.3,3223.5,0.95770136]
[1767694465714,0.02150103,3224.2,3223.5,0.95770136]
[1767694465909,0.17437698,3224.1,3223.5,0.95770136]
[1767694466418,3.123238,3224.0,3223.0,0.95770136]
[1767694466625,6.22497497,3224.0,3223.0,0.95770136]
[1767694466916,3.10173697,3224.0,3223.1,0.95770136]
[1767694467099,3.123238,3224.0,3223.1,0.95770136]
[1767694467503,3.125238,3224.0,3223.1,0.95770136]
[1767694467702,3.125238,3224.0,3223.3,0.95770136]
[1767694468522,0.02350103,3224.0,3223.3,0.95770136]
[1767694469092,3.12524548,3224.0,3223.3,0.95770136]
[1767694473514,0.94511051,3223.9,3222.6,0.93617515]
[1767694473730,0.96661154,3223.8,3222.8,0.93617515]
[1767694473929,0.96661154,3223.8,3222.9,0.93617515]
[1767694474220,0.96661154,3223.8,3223.1,0.93617515]
[1767694474611,3.10374445,3224.0,3223.3,0.93617515]
[1767694474816,0.815,3224.0,3223.4,0.93617515]
[1767694475197,3.91673758,3224.0,3223.4,0.93617515]
[1767694476932,0.815,3224.0,3223.4,0.93617515]
[1767694477527,3.91674354,3224.0,3223.4,0.93617515]
[1767694477829,0.002,3224.0,3223.4,0.93617515]
[1767694478026,3.10375274,3224.0,3223.4,0.93617515]
[1767694478207,0.002,3224.0,3223.4,0.93617515]
[1767694479434,3.12524745,3224.0,3223.4,0.93617515]
[1767694479619,0.02350103,3224.0,3223.4,0.93617515]
[1767694479818,0.002,3224.0,3223.4,0.93617515]
[1767694480416,3.12525819,3224.0,3223.2,0.93617515]
[1767694480624,3.12525819,3224.0,3223.3,1.34004948]
[1767694480809,0.002,3223.7,3223.4,0.93617515]
[1767694481908,0.94511051,3223.9,3223.2,4.03862916]
[1767694482816,0.94511051,3223.9,3223.3,3.10240948]
[1767694483018,0.94511051,3223.9,3223.2,4.03861732]
[1767694483219,0.94511051,3223.9,3223.3,0.7141212]
[1767694484208,0.94511051,3223.9,3223.2,3.10244217]
[1767694486220,0.94511051,3223.9,3223.1,3.10260308]
[1767694486533,0.94511051,3223.8,3223.0,4.0388247]
[1767694487036,3.12528563,3224.0,3223.1,0.93617515]
[1767694487913,0.02350103,3224.0,3223.1,0.93617515]
[1767694488112,0.02350103,3224.0,3223.3,0.93617515]
[1767694489041,3.12524521,3224.0,3223.3,0.93617515]
[1767694490843,4.07035572,3224.0,3223.3,0.93617515]
[1767694493843,0.002,3223.7,3223.3,0.93617515]
[1767694495241,0.002,3223.7,3222.9,3.10279393]
[1767694495242,0.94711051,3223.7,3222.9,0.93617515]
[1767694495443,0.002,3223.7,3222.9,0.93617515]
[1767694495642,0.002,3223.7,3223.0,0.96447627]
[1767694496036,0.002,3223.7,3223.0,1.27467627]
[1767694496238,0.002,3223.7,3223.0,0.96447627]
[1767694497546,3.10402562,3223.7,3223.0,0.96447627]
[1767694498433,3.12552665,3223.7,3223.0,0.96447627]
[1767694498821,6.22755227,3223.7,3223.0,0.96447627]
[1767694499019,6.20605124,3223.7,3223.0,0.96447627]
[1767694499232,6.91807664,3223.7,3223.0,0.96447627]
[1767694499423,3.81605102,3223.7,3223.0,0.96447627]
[1767694499650,3.83755205,3223.7,3223.0,0.96447627]
[1767694499944,7.85378041,3223.7,3223.0,0.96447627]
[1767694500144,7.83227938,3223.7,3223.0,0.96447627]
[1767694501255,7.12025398,3223.7,3223.0,0.96447627]
[1767694501571,4.01822836,3223.7,3223.0,0.96447627]
[1767694501771,0.002,3223.7,3223.0,0.96447627]
[1767694501976,0.002,3224.0,3223.3,0.98082659]
[1767694502122,0.002,3224.0,3223.5,0.98082659]
[1767694502327,0.992552,3224.2,3223.2,5.59763693]
[1767694502549,0.992552,3224.2,3223.3,2.16110777]
[1767694503972,3.1249619,3224.3,3223.4,0.98082659]
[1767694504334,7.21897477,3224.3,3223.4,0.98082659]
[1767694504529,0.992552,3224.0,3223.2,0.98082659]
[1767694504852,0.02150103,3223.9,3223.2,0.98082659]
[1767694505171,0.02150103,3224.0,3223.2,0.98082659]
[1767694505374,1.01405303,3224.0,3223.2,1.38916939]
[1767694505537,1.01405303,3224.0,3223.6,0.001]
[1767694505875,0.002,3223.9,3223.6,0.001]
[1767694506575,0.994552,3223.9,3223.6,0.001]
[1767694506759,0.002,3223.9,3223.6,0.001]
[1767694506926,0.80526469,3223.9,3223.6,0.001]
[1767694508758,3.90715936,3223.9,3223.6,0.001]
[1767694510463,0.02150103,3223.8,3223.6,0.001]
[1767694510832,3.10202562,3223.7,3223.6,0.001]
[1767694511655,3.10202562,3223.7,3223.1,0.98082659]
[1767694512951,3.12344026,3223.8,3223.1,0.98082659]
[1767694513264,3.12344026,3223.8,3223.2,0.98082659]
[1767694515047,6.22537949,3223.8,3223.2,0.98082659]
[1767694515241,7.19643046,3223.8,3222.9,0.98082659]
[1767694515447,0.992552,3223.7,3222.9,0.98082659]
[1767694517066,3.10212185,3223.6,3222.9,0.98082659]
[1767694517967,3.10212185,3223.6,3223.5,0.001]
[1767694518156,0.72181259,3223.6,3223.5,0.001]
[1767694518965,3.10197689,3223.8,3223.5,0.001]
[1767694519466,3.12347792,3223.8,3223.5,0.001]
[1767694520967,3.10197689,3223.8,3223.5,0.001]
[1767694521754,3.12347792,3223.8,3223.5,0.001]
[1767694522047,0.992552,3223.7,3223.5,0.001]
[1767694522247,1.71453972,3223.7,3223.5,0.001]
[1767694522447,0.72198772,3223.7,3223.5,0.001]
[1767694523063,1.71453972,3223.7,3223.5,0.001]
[1767694523852,4.81659094,3223.7,3223.5,0.001]
[1767694524753,1.71453972,3223.7,3223.5,0.001]
[1767694526875,4.81657795,3223.7,3223.5,0.001]
[1767694527176,3.82402595,3223.7,3223.5,0.001]
[1767694528179,0.02150103,3223.6,3223.5,0.001]
[1767694529474,3.91689192,3223.9,3223.5,0.001]
[1767694529660,0.49094439,3223.8,3223.5,0.001]
[1767694530282,3.59289103,3223.8,3223.5,0.001]
[1767694530880,0.49094439,3223.8,3223.5,0.98182659]
[1767694531081,3.59287908,3223.8,3223.5,0.98182659]
[1767694533891,0.02150103,3223.7,3223.5,0.98182659]
[1767694537497,0.02350103,3223.9,3223.5,0.98182659]
[1767694537787,3.51916631,3223.9,3223.5,0.98182659]
[1767694539286,0.39581599,3223.9,3223.5,0.98182659]
[1767694539481,3.49768557,3223.9,3223.5,0.98182659]
[1767694540493,0.002,3223.9,3223.5,0.98182659]
[1767694541585,0.002,3223.6,3223.5,0.98182659]
[1767694541783,0.95789868,3223.9,3223.5,0.001]
[1767694544296,0.002,3224.2,3223.5,0.9323069]
[1767694544472,0.7731989,3224.2,3223.5,0.9323069]
[1767694546302,0.7731989,3224.2,3223.6,0.40346139]
[1767694548391,0.7731989,3224.2,3223.5,0.9323069]
[1767694548974,0.7731989,3224.2,3223.5,4.03446955]
[1767694548975,0.75169787,3224.2,3223.5,4.03446955]
[1767694549504,0.002,3224.2,3223.6,0.9313069]
[1767694549878,0.002,3224.2,3223.7,0.9313069]
[1767694553406,0.002,3223.9,3223.7,0.9313069]
[1767694553601,0.002,3224.2,3223.7,0.9313069]
[1767694553816,0.002,3224.2,3223.8,0.40334026]
[1767694554487,0.002,3224.2,3223.5,4.03447615]
[1767694554698,0.75169787,3224.2,3223.5,0.9323069]
[1767694554887,0.75169787,3224.2,3223.5,4.03443589]
[1767694555793,3.10316522,3224.6,3223.5,4.03443589]
[1767694555794,0.002,3224.6,3224.3,0.74969786]
[1767694556003,0.002,3224.6,3223.8,3.10189178]
[1767694556004,0.004,3224.4,3223.8,3.10189178]
[1767694556206,0.004,3224.4,3224.0,0.91906238]
[1767694557778,0.002,3224.6,3224.3,0.91906238]
[1767694558404,0.75169787,3224.6,3224.0,3.10173305]
[1767694560409,0.75169787,3224.6,3223.9,4.33104383]
[1767694560704,0.75169787,3224.6,3224.0,0.43310438]
[1767694562618,0.75169787,3224.6,3224.0,3.53482201]
[1767694562983,0.002,3224.6,3224.1,0.95826774]
[1767694565395,0.002,3224.3,3224.1,0.95826774]
[1767694565693,0.75169787,3224.6,3224.0,0.43310438]
[1767694566016,0.75169787,3224.6,3224.1,0.3845071]
[1767694566612,0.002,3224.6,3224.1,0.3845071]
[1767694566797,0.002,3224.9,3224.2,0.95826774]
[1767694570120,0.002,3224.9,3224.3,0.95826774]
[1767694573726,3.10287134,3224.9,3224.3,0.95826774]
[1767694574026,0.02150103,3224.8,3224.3,0.95826774]
[1767694577244,0.02150103,3224.8,3224.4,0.001]
[1767694577446,3.10098916,3224.8,3224.4,0.001]
[1767694577607,0.02150103,3224.7,3224.4,0.001]
[1767694577941,3.10290723,3224.9,3224.4,0.001]
[1767694577942,0.02150103,3224.8,3224.4,0.001]
[1767694578709,3.12246875,3224.8,3224.4,0.001]
[1767694578911,0.02150103,3224.8,3224.5,0.95826774]
[1767694579310,0.002,3224.9,3224.5,0.95826774]
[1767694580851,0.02350103,3224.9,3224.5,0.95826774]
[1767694581148,0.002,3224.9,3224.5,0.95826774]
[1767694581505,0.002,3224.9,3224.6,0.95826774]
[1767694582016,0.002,3224.9,3224.5,0.43708177]
[1767694582017,0.74969787,3225.1,3224.5,0.40606921]
[1767694582817,0.7711989,3225.1,3224.5,0.40606921]
[1767694587028,0.02150103,3225.1,3224.6,0.95826774]
[1767694587924,3.12413867,3225.2,3224.6,0.95826774]
[1767694588125,0.75169787,3226.5,3225.6,0.95826774]
[1767694588332,3.09982741,3226.0,3224.9,0.95826774]
[1767694588650,3.10163398,3226.2,3224.9,0.95826774]
[1767694588954,0.91147253,3226.1,3224.9,0.95826774]
[1767694589447,4.01119263,3226.1,3224.9,0.95826774]
[1767694589630,1.72447253,3226.1,3225.1,0.95826774]
[1767694590365,0.91147253,3226.0,3225.1,0.95826774]
[1767694590550,0.815,3226.2,3225.1,0.95826774]
[1767694591865,3.91463661,3226.2,3225.3,0.93937287]
[1767694592224,0.815,3226.2,3225.4,0.93937287]
[1767694592660,3.91462683,3226.2,3225.4,0.93937287]
[1767694592994,4.61315078,3226.0,3225.4,0.93937287]
[1767694593140,4.61315078,3226.0,3224.5,0.40606921]
[1767694593141,0.91559734,3225.9,3224.8,0.001]
[1767694593334,0.91559734,3225.9,3224.9,4.04019024]
[1767694593335,0.55287481,3225.8,3224.9,4.04019024]
[1767694593540,0.91559734,3225.9,3224.9,4.04019024]
[1767694593752,4.01554577,3225.9,3225.0,0.93937287]
[1767694593947,0.91559734,3225.9,3225.0,0.93937287]
[1767694594967,1.72759734,3225.9,3225.0,0.93937287]
[1767694595974,1.72759734,3225.9,3224.8,0.001]
[1767694595975,0.812,3225.9,3225.2,0.93937287]
[1767694596162,0.812,3226.1,3225.4,0.93937287]
[1767694596977,0.002,3226.2,3225.4,0.93937287]
[1767694598340,0.002,3226.2,3225.6,0.93937287]
[1767694600266,0.002,3226.2,3225.7,0.93937287]
[1767694601942,0.002,3225.9,3225.7,0.93937287]
[1767694602163,0.002,3226.2,3225.9,0.93937287]
[1767694603965,0.91759734,3226.5,3225.8,3.10000383]
[1767694604542,0.002,3226.5,3225.7,0.93937287]
[1767694605174,3.10135946,3226.5,3225.7,0.93937287]
[1767694606474,0.002,3226.5,3225.7,0.93937287]
[1767694606848,0.002,3226.5,3225.8,0.93937287]
[1767694609678,0.91759734,3226.5,3225.4,3.10033985]
[1767694610083,0.91759734,3226.5,3225.3,3.10044623]
[1767694610272,0.91559734,3226.4,3225.3,3.10044623]
[1767694610596,0.91559734,3226.2,3225.4,4.03976084]
[1767694610808,0.91559734,3226.1,3225.0,0.93937287]
[1767694611095,0.91559734,3226.1,3224.9,0.84300871]
[1767694611418,0.91559734,3226.1,3225.2,3.10056647]
[1767694613185,0.91559734,3226.0,3225.0,3.10077097]
[1767694613561,0.91559734,3226.0,3225.0,6.20154616]
[1767694613910,0.91559734,3226.0,3225.1,0.70135462]
[1767694614056,0.91559734,3225.7,3225.1,0.70135462]
[1767694615410,0.91559734,3225.7,3224.8,0.001]
[1767694615411,4.61515078,3225.8,3225.2,0.90890578]
[1767694615715,8.63647608,3225.8,3224.9,0.90890578]
[1767694615871,4.0233253,3225.8,3224.9,0.90890578]
[1767694616071,4.73565142,3225.8,3224.9,0.90890578]
[1767694617909,4.73565142,3225.8,3225.0,0.90890578]
[1767694620317,1.63564447,3225.8,3225.1,0.90890578]
[1767694620517,0.002,3225.8,3225.1,0.90890578]
[1767694621624,0.002,3225.8,3225.2,1.02836285]
[1767694622594,0.002,3225.8,3225.2,0.99735703]
[1767694624932,0.002,3225.8,3225.4,0.99735703]
[1767694625994,0.002,3225.8,3225.6,0.99735703]
[1767694626828,0.002,3226.1,3225.8,0.99735703]
[1767694627198,0.002,3226.1,3225.5,0.99835703]